bitfinex-derivatives/quotes_SOLF0:USTF0_20251119
["timestamp","ask_amount","ask_price","bid_price","bid_amount"]
[1763591192833,3.09,134.88,134.85,6.6814]
[1763591193127,3.09,134.88,134.84,3.17]
[1763591193331,3.09,134.9,134.84,3.17]
[1763591193531,3.09,134.9,134.86,3.22428003]
[1763591193728,3.09,134.9,134.87,0.05164757]
[1763591195028,3.09,134.9,134.87,3.22164757]
[1763591195433,3.09,134.9,134.87,9.90204757]
[1763591196326,3.09,134.93,134.88,6.68]
[1763591196531,3.09,134.93,134.89,0.05563062]
[1763591197333,3.09,134.93,134.89,3.22563062]
[1763591197922,3.09,134.93,134.89,0.05563062]
[1763591198432,3.09,134.93,134.89,3.39563062]
[1763591199224,3.18,134.94,134.9,3.34]
[1763591199436,3.18,134.94,134.91,0.05467927]
[1763591200638,3.18,134.94,134.91,6.73317927]
[1763591202134,3.18,134.97,134.92,6.6781]
[1763591202335,3.18,134.97,134.93,0.05352487]
[1763591203027,3.18,134.97,134.93,3.39352487]
[1763591203230,3.18,134.97,134.93,0.05352487]
[1763591204237,3.18,134.97,134.93,6.73102487]
[1763591205325,22.51431344,135.05,134.93,6.73102487]
[1763591205326,3.18,134.94,134.93,0.05352487]
[1763591205539,3.18,134.94,134.92,0.05456796]
[1763591205836,3.18,134.94,134.92,0.05196364]
[1763591206234,3.18,134.94,134.86,3.34]
[1763591206439,3.18,134.94,134.88,3.34]
[1763591206942,3.18,134.99,134.9,3.34]
[1763591207239,3.18,134.98,134.9,3.34]
[1763591207440,0.04998119,134.95,134.93,0.05087255]
[1763591207636,0.04998119,134.95,134.93,10.06827255]
[1763591207832,0.04998119,134.95,134.94,3.34]
[1763591208433,3.22998119,134.95,134.93,0.05087255]
[1763591208738,0.04998119,134.95,134.93,3.39087255]
[1763591209138,0.04998119,134.95,134.94,3.34]
[1763591209834,0.04998119,134.95,134.93,6.72837255]
[1763591210240,3.22998119,134.95,134.93,0.05087255]
[1763591210733,0.04998119,134.95,134.93,10.06847255]
[1763591211135,3.22998119,134.95,134.93,0.05087255]
[1763591211337,0.04998119,134.95,134.93,3.39087255]
[1763591211937,0.04998119,134.95,134.93,10.06837255]
[1763591212638,3.18,135.02,134.94,3.34]
[1763591212838,3.18,135.02,134.89,3.34]
[1763591213134,3.18,134.99,134.93,6.6774]
[1763591213337,3.18,134.99,134.91,3.34]
[1763591213540,3.18,134.99,134.88,3.34]
[1763591213737,3.18,134.98,134.94,0.04943527]
[1763591213936,3.18,134.95,134.88,3.34]
[1763591214840,3.18,134.94,134.88,3.34]
[1763591215146,0.05159887,134.92,134.91,3.34]
[1763591215445,0.04849969,134.93,134.91,3.34]
[1763591215648,3.18,134.98,134.92,3.34]
[1763591216333,3.18,134.98,134.94,3.34]
[1763591216747,3.18,134.98,134.95,0.0543351]
[1763591220642,3.18,135.01,134.95,10.0708351]
[1763591220836,3.18,134.99,134.95,0.0543351]
[1763591221041,3.18,134.99,134.91,3.34]
[1763591221042,3.18,134.97,134.96,0.05286456]
[1763591221839,4.66,134.97,134.88,3.34]
[1763591222047,3.18,134.95,134.88,3.34]
[1763591222743,3.18,134.95,134.91,10.0185]
[1763591222952,3.18,134.95,134.92,3.34]
[1763591223152,3.22691747,134.95,134.92,3.38711438]
[1763591223449,0.04691747,134.95,134.93,10.0174]
[1763591223642,0.04691747,134.95,134.94,3.34]
[1763591225251,0.04691747,134.95,134.93,10.0174]
[1763591226140,0.04691747,134.95,134.93,6.6774]
[1763591226347,3.22691747,134.95,134.93,6.6774]
[1763591226555,3.22691747,134.95,134.92,0.04711438]
[1763591226556,5.47879058,134.94,134.92,3.38711438]
[1763591226849,3.22691747,134.95,134.92,3.38711438]
[1763591227251,5.46319846,134.94,134.92,3.38711438]
[1763591227449,0.04691747,134.95,134.92,10.06511438]
[1763591227657,5.46368024,134.94,134.93,3.34]
[1763591227955,0.04691747,134.95,134.93,3.34]
[1763591228546,0.04691747,134.95,134.93,10.0174]
[1763591229149,0.04691747,134.95,134.94,3.08]
[1763591232351,6.92716074,135.01,134.95,3.08]
[1763591232550,8.59459429,135.0,134.95,3.08]
[1763591232855,5.47459429,134.99,134.95,3.08]
[1763591233056,5.47459429,134.98,134.97,6.6756]
[1763591234250,3.12,135.0,134.97,9.7556]
[1763591234454,5.47916164,134.99,134.97,9.7556]
[1763591234753,3.12,135.0,134.97,9.7556]
[1763591234956,5.47916164,134.99,134.97,9.7556]
[1763591235155,5.48294915,134.98,134.97,9.7556]
[1763591237453,5.48294915,134.98,134.97,3.08]
[1763591237661,8.60294915,134.98,134.96,0.04788779]
[1763591237856,5.48294915,134.97,134.96,0.04788779]
[1763591240062,5.48294915,134.97,134.96,3.12788779]
[1763591240260,10.04716074,135.01,134.96,3.12788779]
[1763591240455,3.12,134.99,134.96,3.12788779]
[1763591240657,5.47646367,134.98,134.96,3.12788779]
[1763591240864,3.12,134.99,134.96,3.12788779]
[1763591241065,5.47646367,134.98,134.96,3.12788779]
[1763591241260,6.92716074,135.01,134.96,3.12788779]
[1763591241561,5.47788386,135.0,134.96,3.12788779]
[1763591241759,3.12,135.03,134.96,3.12788779]
[1763591241952,8.59707366,135.02,134.96,3.12788779]
[1763591242156,3.12,135.0,134.96,3.12788779]
[1763591242566,3.12,135.0,134.97,9.7556]
[1763591242758,3.12,135.02,134.98,3.08]
[1763591242958,8.5981525,135.01,134.99,0.05434906]
[1763591243158,5.4781525,135.0,134.99,0.05434906]
[1763591243357,8.5981525,135.0,134.99,0.05434906]
[1763591243963,5.4781525,135.0,134.99,3.13434906]
[1763591244165,3.12,135.03,135.0,3.08]
[1763591244369,5.47903234,135.02,135.0,3.08]
[1763591244562,3.12,135.05,135.0,3.08]
[1763591244762,5.47691526,135.04,135.01,6.6733]
[1763591244964,3.12,135.05,135.01,3.08]
[1763591245165,5.47659374,135.04,135.01,3.08]
[1763591245473,3.12,135.05,135.01,3.08]
[1763591245661,5.47371485,135.04,135.01,3.08]
[1763591245867,3.12,135.05,135.02,6.673]
[1763591246062,5.47371389,135.04,135.02,9.92143689]
[1763591246269,3.12,135.05,135.02,9.92143689]
[1763591247267,3.12,135.05,135.02,3.24843689]
[1763591248171,3.16,135.08,135.04,9.8721]
[1763591248376,5.46827661,135.07,135.04,9.8721]
[1763591248568,3.16,135.08,135.04,9.8721]
[1763591248765,5.46498906,135.07,135.04,9.8721]
[1763591248979,3.16,135.06,135.04,6.6721]
[1763591249276,3.16,135.06,135.04,6.7265976]
[1763591249873,3.16,135.06,135.04,0.0544976]
[1763591250571,5.45917914,135.1,135.04,3.2544976]
[1763591250776,3.16,135.08,135.04,9.9264976]
[1763591251171,3.16,135.08,135.04,3.2544976]
[1763591252479,3.16,135.08,135.04,9.9263976]
[1763591252676,3.16,135.08,135.05,3.2]
[1763591253068,3.16,135.1,135.06,3.2]
[1763591253268,3.16,135.13,135.07,3.25305959]
[1763591253472,8.61116069,135.12,135.09,0.05083748]
[1763591253678,3.16,135.12,135.09,0.05083748]
[1763591256375,3.16,135.12,135.09,9.92043748]
[1763591256585,3.16,135.14,135.1,3.2]
[1763591256781,8.60077897,135.14,135.11,0.05326302]
[1763591257082,3.16,135.14,135.11,0.05326302]
[1763591257678,3.16,135.14,135.11,6.72186302]
[1763591257884,3.32,135.15,135.11,0.05326302]
[1763591258081,3.32,135.13,135.06,3.05]
[1763591258381,3.32,135.11,135.03,3.05]
[1763591258688,3.32,135.11,135.06,9.7211]
[1763591258981,0.04949796,135.1,135.07,3.1042233]
[1763591259178,3.32,135.11,135.07,3.1042233]
[1763591259179,3.32,135.11,135.07,3.10006223]
[1763591259384,0.05307776,135.1,135.07,3.10006223]
[1763591260680,0.05307776,135.1,135.07,9.77066223]
[1763591261781,3.37307776,135.1,135.07,0.05006223]
[1763591262180,0.05307776,135.1,135.07,3.10006223]
[1763591263185,0.05307776,135.1,135.09,3.05]
[1763591265191,3.32,135.17,135.11,3.05]
[1763591265382,3.32,135.15,135.11,3.05]
[1763591265890,3.32,135.16,135.13,6.6677]
[1763591266189,3.32,135.16,135.13,9.76828542]
[1763591266391,3.32,135.17,135.13,9.76828542]
[1763591266592,3.32,135.15,135.13,0.05058542]
[1763591270385,6.08183503,135.16,135.13,0.05058542]
[1763591270592,6.08183503,135.16,135.13,3.10058542]
[1763591270784,3.32,135.16,135.13,0.05058542]
[1763591272092,3.32,135.15,135.13,0.05058542]
[1763591272887,3.32,135.14,135.13,0.05058542]
[1763591275093,3.32,135.12,135.06,3.05]
[1763591275393,3.32,135.1,135.03,3.05]
[1763591275984,0.04858834,135.08,135.05,3.1069106]
[1763591277393,3.32,135.07,135.05,0.0569106]
[1763591280192,0.04858834,135.08,135.05,3.1069106]
[1763591280798,3.36858834,135.08,135.05,9.7784106]
[1763591280985,0.04858834,135.08,135.06,3.05]
[1763591281390,0.04858834,135.08,135.06,9.7209]
[1763591282390,0.04858834,135.08,135.06,3.05]
[1763591282790,5.62029409,135.12,135.06,3.05]
[1763591282984,3.32,135.14,135.06,3.05]
[1763591283200,3.32,135.14,135.1,6.6691]
[1763591283201,5.61946314,135.13,135.1,6.6691]
[1763591283397,3.32,135.14,135.1,9.7191]
[1763591283601,5.62257521,135.13,135.12,3.05]
[1763591283797,3.32,135.16,135.12,3.05]
[1763591283998,5.62174844,135.15,135.12,3.05]
[1763591284203,3.32,135.16,135.12,3.05]
[1763591284398,6.92716074,135.2,135.14,3.05]
[1763591284700,5.60823491,135.19,135.16,0.05518868]
[1763591284898,5.60823491,135.18,135.16,0.05518868]
[1763591285094,3.32,135.2,135.16,0.05518868]
[1763591285399,5.60607231,135.19,135.16,0.05518868]
[1763591285605,5.60607231,135.18,135.16,0.05518868]
[1763591285791,3.32,135.2,135.16,9.77118868]
[1763591285992,8.92901544,135.19,135.16,9.77118868]
[1763591286191,8.92901544,135.19,135.16,0.05518868]
[1763591286192,5.60901544,135.18,135.16,0.05518868]
[1763591286392,3.32,135.19,135.16,0.05518868]
[1763591286588,3.32,135.17,135.16,0.05518868]
[1763591286792,8.93117778,135.17,135.16,0.05518868]
[1763591286999,5.61117778,135.17,135.16,0.05518868]
[1763591287390,8.93117778,135.17,135.16,0.05518868]
[1763591289706,5.61117778,135.17,135.16,0.05518868]
[1763591289909,3.3,135.2,135.16,0.05518868]
[1763591290107,8.91625903,135.19,135.16,0.05518868]
[1763591290297,5.61625903,135.18,135.16,9.88128868]
[1763591290498,3.3,135.2,135.16,9.88128868]
[1763591290706,5.61652557,135.19,135.16,9.88128868]
[1763591291008,5.61652557,135.18,135.16,9.88128868]
[1763591291201,3.3,135.2,135.16,9.88128868]
[1763591291505,5.61552673,135.19,135.16,9.88128868]
[1763591291708,5.61552673,135.18,135.16,9.88128868]
[1763591292008,3.3,135.2,135.16,9.88128868]
[1763591292208,3.3,135.18,135.16,0.05518868]
[1763591292409,5.61710982,135.17,135.16,0.05518868]
[1763591293009,8.91710982,135.17,135.09,3.16]
[1763591293201,3.3,135.16,135.09,3.16]
[1763591293505,3.3,135.16,135.11,6.6686]
[1763591293711,13.50311134,135.19,135.12,3.16]
[1763591293903,6.6644,135.2,135.12,3.16]
[1763591293904,5.61969253,135.18,135.12,3.16]
[1763591294205,3.3,135.2,135.14,6.6669]
[1763591294506,0.05243714,135.16,135.14,9.87393488]
[1763591296310,0.05243714,135.16,135.15,3.16]
[1763591296902,0.05243714,135.16,135.14,6.71393488]
[1763591296903,0.05243714,135.16,135.14,3.20703488]
[1763591297611,0.05243714,135.16,135.14,9.87413488]
[1763591298017,3.35243714,135.16,135.14,0.04703488]
[1763591298214,0.05243714,135.16,135.14,9.87423488]
[1763591298513,0.05243714,135.16,135.15,3.16]
[1763591299115,3.3,135.21,135.17,3.16]
[1763591299314,5.62156345,135.2,135.17,3.16]
[1763591299614,3.3,135.21,135.12,6.5759506]
[1763591299805,3.3,135.19,135.16,3.16]
[1763591300006,3.3,135.19,135.16,3.2151983]
[1763591300309,3.3,135.19,135.16,0.0551983]
[1763591306113,3.22,135.17,135.16,0.0551983]
[1763591306813,8.83505226,135.19,135.16,0.0551983]
[1763591307008,3.22,135.19,135.16,0.0551983]
[1763591307208,3.22,135.19,135.16,3.1851983]
[1763591307514,3.22,135.21,135.16,3.1851983]
[1763591308715,3.22,135.21,135.17,6.6656]
[1763591309023,3.22,135.17,135.16,0.0551983]
[1763591312916,3.22,135.18,135.16,0.0551983]
[1763591313318,6.92716074,135.22,135.16,3.1851983]
[1763591313524,8.83474683,135.21,135.17,9.7957]
[1763591313820,3.22,135.2,135.18,0.05017943]
[1763591314029,3.22,135.2,135.18,6.71537943]
[1763591314418,10.14716074,135.26,135.19,3.13]
[1763591314620,3.22,135.24,135.21,6.71586997]
[1763591314917,3.22,135.24,135.21,0.05046739]
[1763591315509,3.22,135.24,135.21,6.71416739]
[1763591315714,6.92716074,135.28,135.21,3.18046739]
[1763591315715,5.60946926,135.27,135.21,3.18046739]
[1763591315925,3.22,135.28,135.21,3.18046739]
[1763591316827,3.22,135.31,135.23,3.13]
[1763591317013,8.82510725,135.3,135.26,0.05034586]
[1763591317216,8.82510725,135.29,135.26,0.05034586]
[1763591317417,3.22,135.28,135.26,0.05034586]
[1763591317624,6.92716074,135.32,135.26,3.18034586]
[1763591317925,3.14,135.3,135.26,3.18034586]
[1763591318227,3.14,135.3,135.26,0.05034586]
[1763591318727,3.14,135.3,135.27,6.6608]
[1763591319224,3.14,135.32,135.26,0.05034586]
[1763591319430,3.14,135.32,135.28,0.05156959]
[1763591321730,3.14,135.32,135.28,3.08156959]
[1763591322925,3.14,135.33,135.28,0.05156959]
[1763591323325,3.14,135.33,135.28,3.08156959]
[1763591325821,3.14,135.33,135.3,6.6592]
[1763591326731,3.14,135.33,135.3,9.6892]
[1763591327130,3.14,135.33,135.3,6.6592]
[1763591328027,3.14,135.33,135.3,9.6892]
[1763591328227,3.14,135.33,135.31,6.6586]
[1763591328426,3.14,135.34,135.31,6.6586]
[1763591328633,3.14,135.36,135.33,6.6578]
[1763591328833,3.14,135.36,135.33,6.71106196]
[1763591329228,3.14,135.36,135.33,0.05326196]
[1763591333031,9.7966,135.36,135.33,0.05326196]
[1763591333231,8.71212974,135.35,135.33,0.05326196]
[1763591333433,3.14,135.34,135.33,0.05326196]
[1763591334840,3.14,135.33,135.27,25.75613483]
[1763591335431,3.14,135.33,135.29,6.6598]
[1763591335838,3.19282173,135.32,135.3,0.05105326]
[1763591337340,3.19282173,135.32,135.3,6.71035326]
[1763591338043,3.19282173,135.32,135.3,0.05105326]
[1763591339835,0.05282173,135.32,135.3,0.05105326]
[1763591340139,3.19282173,135.32,135.3,0.05105326]
[1763591344341,0.05282173,135.32,135.3,9.74025326]
[1763591349042,4.30461389,135.35,135.3,0.05105326]
[1763591349241,3.01,135.34,135.28,3.01]
[1763591349836,3.01,135.34,135.29,9.6698]
[1763591350044,3.01,135.34,135.3,0.04751819]
[1763591350548,3.01,135.34,135.3,6.70681819]
[1763591351044,3.01,135.32,135.3,0.04751819]
[1763591351444,5.58811682,135.31,135.3,0.04751819]
[1763591351644,8.59811682,135.31,135.3,0.04751819]
[1763591353247,3.01,135.31,135.3,0.04751819]
[1763591354744,3.01,135.34,135.3,3.05751819]
[1763591355049,8.6077053,135.33,135.3,3.05751819]
[1763591355348,3.01,135.33,135.3,3.05751819]
[1763591356046,3.01,135.33,135.3,9.71681819]
[1763591357246,3.01,135.35,135.31,9.6688]
[1763591357451,3.01,135.33,135.3,0.04751819]
[1763591357749,3.01,135.33,135.3,9.71681819]
[1763591359149,5.61033139,135.32,135.3,9.71681819]
[1763591359347,3.01,135.33,135.3,9.71681819]
[1763591359541,5.61041456,135.32,135.3,9.71681819]
[1763591359850,3.01,135.33,135.3,9.71681819]
[1763591360150,5.61041456,135.32,135.3,9.71681819]
[1763591360350,3.01,135.33,135.3,9.71681819]
[1763591360552,5.60494907,135.32,135.3,9.71681819]
[1763591360851,3.01,135.33,135.3,9.71681819]
[1763591361051,5.60494907,135.32,135.3,9.71681819]
[1763591361248,5.60494907,135.31,135.3,9.71681819]
[1763591361448,4.907e-05,135.31,135.3,9.71681819]
[1763591361749,9.93716074,135.35,135.33,6.6578]
[1763591362246,3.01,135.35,135.33,6.6578]
[1763591362456,3.01,135.35,135.31,3.01]
[1763591362640,3.01,135.34,135.31,3.01]
[1763591363243,3.01,135.34,135.32,9.6683]
[1763591363444,3.01,135.34,135.3,0.04751819]
[1763591363639,3.01,135.34,135.31,3.01]
[1763591364239,3.01,135.34,135.31,9.6688]
[1763591365153,3.01,135.34,135.32,6.6583]
[1763591366347,10.09716074,135.36,135.33,6.6577]
[1763591366549,3.17,135.35,135.33,6.70453105]
[1763591366744,3.17,135.35,135.33,0.04683105]
[1763591368653,6.92716074,135.37,135.35,3.3]
[1763591368955,3.17,135.38,135.35,3.3]
[1763591369348,3.17,135.38,135.33,3.34683105]
[1763591369650,10.09716074,135.38,135.33,0.04683105]
[1763591369846,3.17,135.36,135.33,0.04683105]
[1763591370752,2.75493892,135.34,135.33,0.04683105]
[1763591371058,5.92493892,135.34,135.33,0.04683105]
[1763591371955,5.92493892,135.34,135.27,12.12]
[1763591371956,3.17,135.33,135.27,12.12]
[1763591372154,3.17,135.31,135.27,15.42]
[1763591373055,3.2231883,135.3,135.28,0.05652567]
[1763591373856,5.97812722,135.3,135.28,0.05652567]
[1763591374057,8.75500819,135.29,135.28,0.05652567]
[1763591374955,5.58500819,135.29,135.28,3.35652567]
[1763591375157,0.0531883,135.3,135.28,3.35652567]
[1763591376458,0.0531883,135.3,135.29,3.3]
[1763591380860,10.07716074,135.36,135.32,3.2]
[1763591381060,5.58309134,135.35,135.32,3.2]
[1763591381265,5.58309134,135.34,135.32,9.8581]
[1763591381449,3.15,135.36,135.3,5.95493892]
[1763591381763,5.58253911,135.35,135.33,9.8578]
[1763591381962,3.15,135.37,135.33,3.2]
[1763591382263,5.58219563,135.36,135.33,3.2]
[1763591382460,5.58219563,135.35,135.34,9.8574]
[1763591382659,5.58219563,135.35,135.34,3.2]
[1763591383064,8.73219563,135.35,135.33,6.6577]
[1763591383256,3.15,135.35,135.32,0.0478811]
[1763591383760,3.15,135.35,135.32,3.2478811]
[1763591383961,3.15,135.35,135.32,9.9060811]
[1763591385160,3.15,135.37,135.34,3.2]
[1763591385369,5.58015934,135.36,135.34,3.2]
[1763591385669,6.92716074,135.39,135.32,0.0478811]
[1763591385670,3.15,135.38,135.35,3.2]
[1763591385861,8.73010282,135.37,135.35,0.04772225]
[1763591386166,5.58010282,135.36,135.35,0.04772225]
[1763591387758,5.58010282,135.36,135.35,6.70462225]
[1763591388068,3.15,135.4,135.36,0.52]
[1763591388372,3.15,135.4,135.38,6.6552]
[1763591388564,3.15,135.42,135.38,7.1752]
[1763591388765,3.15,135.42,135.39,0.04819889]
[1763591389161,3.15,135.45,135.4,3.27493892]
[1763591389371,3.15,135.45,135.4,0.52]
[1763591390172,3.15,135.46,135.42,0.52]
[1763591390672,3.15,135.46,135.43,0.05606804]
[1763591395874,3.15,135.45,135.43,0.05606804]
[1763591396775,3.15,135.44,135.43,0.05606804]
[1763591398576,3.15,135.44,135.37,7.1756]
[1763591398781,3.15,135.41,135.37,0.52]
[1763591398980,3.15,135.41,135.36,0.57]
[1763591399184,3.15,135.41,135.36,3.32493892]
[1763591399492,3.20206187,135.4,135.38,6.6553]
[1763591399983,3.20206187,135.4,135.37,0.62419742]
[1763591400492,3.15,135.39,135.37,0.05419742]
[1763591401177,0.05206187,135.4,135.37,0.05419742]
[1763591401178,0.05206187,135.4,135.37,0.62419742]
[1763591401382,0.05206187,135.4,135.39,0.57]
[1763591401582,3.15,135.43,135.39,0.57]
[1763591402081,3.15,135.43,135.4,7.2243]
[1763591402490,3.15,135.43,135.4,7.27552804]
[1763591403793,3.15,135.43,135.4,0.05122804]
[1763591404090,3.15,135.41,135.4,0.05122804]
[1763591406195,3.15,135.43,135.4,0.05122804]
[1763591406384,3.15,135.43,135.4,0.62122804]
[1763591406580,3.15,135.43,135.4,0.05122804]
[1763591406888,3.15,135.43,135.4,6.70552804]
[1763591407089,3.15,135.43,135.4,0.62122804]
[1763591407689,3.15,135.43,135.4,0.05122804]
[1763591407892,5.90493892,135.43,135.4,0.05122804]
[1763591408195,3.34,135.42,135.4,0.05122804]
[1763591409687,3.34,135.45,135.41,0.59]
[1763591409896,3.34,135.49,135.44,3.34493892]
[1763591410096,2.03003734,135.5,135.47,0.59]
[1763591410401,5.37003734,135.5,135.47,0.63979454]
[1763591410595,5.37003734,135.5,135.47,0.04979454]
[1763591412198,5.37003734,135.5,135.47,6.70069454]
[1763591412399,5.37003734,135.5,135.48,2.75493892]
[1763591412797,5.37003734,135.5,135.47,0.63979454]
[1763591413200,5.37003734,135.5,135.48,6.6504]
[1763591415389,3.34,135.49,135.47,0.04979454]
[1763591416200,3.34,135.49,135.47,6.70069454]
[1763591417400,3.34,135.49,135.47,0.04979454]
[1763591419491,3.34,135.49,135.37,13.3114]
[1763591419492,3.34,135.49,135.41,0.59]
[1763591419798,3.34,135.49,135.38,0.59]
[1763591420501,3.39247535,135.45,135.42,0.05138486]
[1763591420702,3.39247535,135.45,135.42,6.70468486]
[1763591421096,0.05247535,135.45,135.42,0.64138486]
[1763591421407,3.39247535,135.45,135.42,0.05138486]
[1763591421607,0.05247535,135.45,135.42,0.64138486]
[1763591421802,0.05247535,135.45,135.43,6.6529]
[1763591422106,0.05247535,135.45,135.43,7.2429]
[1763591422305,0.05247535,135.45,135.44,0.59]
[1763591422505,3.34,135.49,135.45,0.59]
[1763591422699,2.03003734,135.5,135.45,0.59]
[1763591423207,5.37003734,135.5,135.43,0.59]
[1763591423600,3.34,135.49,135.45,0.64548407]
[1763591423797,2.03003734,135.5,135.47,0.59]
[1763591424700,2.03003734,135.5,135.49,0.59]
[1763591425605,2.03003734,135.5,135.48,7.29091701]
[1763591428403,2.03003734,135.5,135.49,0.59]
[1763591428711,2.03003734,135.5,135.48,7.29091701]
[1763591430614,2.03003734,135.5,135.49,0.59]
[1763591431110,3.734e-05,135.5,135.49,0.59]
[1763591431313,3.33,135.56,135.51,0.59]
[1763591431612,3.33,135.54,135.52,0.0511962]
[1763591434417,3.33,135.54,135.52,6.6995962]
[1763591434715,3.33,135.54,135.52,0.0511962]
[1763591434909,3.33,135.54,135.52,6.6996962]
[1763591435615,3.33,135.54,135.52,0.0511962]
[1763591437313,4.81,135.54,135.45,16.15]
[1763591437615,3.33,135.51,135.42,0.64]
[1763591437820,3.15,135.5,135.42,0.64]
[1763591438523,0.05132874,135.47,135.45,0.05083047]
[1763591438814,3.20132874,135.47,135.39,6.1]
[1763591439008,3.15,135.45,135.39,6.1]
[1763591439412,3.15,135.45,135.41,6.6539]
[1763591439613,3.15,135.45,135.39,6.1]
[1763591439923,3.20481672,135.43,135.41,0.05271008]
[1763591441421,3.20481672,135.43,135.36,0.62]
[1763591442324,3.15,135.42,135.38,0.05314948]
[1763591442644,3.15,135.4,135.38,0.05314948]
[1763591443736,0.04754558,135.41,135.38,0.72314948]
[1763591444131,3.19754558,135.41,135.38,6.70844948]
[1763591444330,3.19754558,135.41,135.38,7.37844948]
[1763591444735,3.19754558,135.41,135.38,6.70844948]
[1763591444935,3.19754558,135.41,135.38,7.37844948]
[1763591445532,3.19754558,135.41,135.38,6.70844948]
[1763591446639,3.19754558,135.41,135.38,0.05314948]
[1763591447738,0.04754558,135.41,135.38,0.72314948]
[1763591448144,3.19754558,135.41,135.38,0.05314948]
[1763591448846,3.19754558,135.41,135.38,6.70834948]
[1763591451238,3.19754558,135.41,135.38,0.05314948]
[1763591452236,3.19754558,135.41,135.33,15.56]
[1763591452543,3.19754558,135.41,135.31,0.67]
[1763591452843,3.15,135.4,135.33,6.6578]
[1763591453044,3.15,135.4,135.31,0.67]
[1763591453242,3.15,135.4,135.34,6.6573]
[1763591453450,0.0518789,135.37,135.34,7.43967784]
[1763591453649,0.0518789,135.37,135.34,0.78237784]
[1763591453852,0.0518789,135.37,135.35,7.3867]
[1763591454243,3.2018789,135.37,135.34,0.05237784]
[1763591454638,3.2018789,135.37,135.26,3.12]
[1763591454845,3.15,135.37,135.26,3.12]
[1763591455046,3.15,135.37,135.28,10.26632143]
[1763591455347,3.15,135.37,135.33,3.12]
[1763591455547,0.04901507,135.36,135.34,0.04691139]
[1763591455951,0.04901507,135.36,135.34,3.16691139]
[1763591456945,0.04901507,135.36,135.34,9.82401139]
[1763591458652,0.04901507,135.36,135.34,0.04691139]
[1763591459358,3.19901507,135.36,135.34,0.04691139]
[1763591462845,0.04901507,135.36,135.35,3.12]
[1763591463048,3.15,135.42,135.35,3.12]
[1763591463557,3.15,135.42,135.37,3.12]
[1763591464057,3.20487084,135.41,135.38,6.70951153]
[1763591464355,3.2058877,135.41,135.38,0.05452678]
[1763591465551,3.15,135.4,135.3,3.12]
[1763591466247,3.15,135.4,135.33,6.6576]
[1763591466656,3.15,135.37,135.35,0.05279878]
[1763591466855,3.20119069,135.37,135.35,0.05663735]
[1763591467660,3.20119069,135.37,135.29,14.56]
[1763591467860,3.20119069,135.37,135.29,17.8]
[1763591468664,3.20119069,135.37,135.32,0.05278318]
[1763591469164,3.20119069,135.37,135.33,9.8977]
[1763591469959,3.20119069,135.37,135.33,3.24]
[1763591470161,0.05119069,135.37,135.33,3.24]
[1763591470466,3.26119069,135.37,135.33,3.24]
[1763591470659,0.05119069,135.37,135.33,3.24]
[1763591470866,3.26119069,135.37,135.33,3.24]
[1763591471066,3.26119069,135.37,135.32,9.95078318]
[1763591471266,3.26119069,135.37,135.32,6.71078318]
[1763591471457,3.26119069,135.37,135.32,9.95078318]
[1763591471654,3.26119069,135.37,135.32,0.05278318]
[1763591472369,3.26119069,135.37,135.32,3.29278318]
[1763591472762,3.26119069,135.37,135.32,9.95078318]
[1763591472975,3.26119069,135.37,135.32,3.29278318]
[1763591473167,3.26119069,135.37,135.32,0.05278318]
[1763591474070,9.91719069,135.37,135.32,0.05278318]
[1763591474276,3.21,135.36,135.32,0.05278318]
[1763591474658,9.8666,135.36,135.32,0.05278318]
[1763591474859,3.21,135.35,135.32,0.05278318]
[1763591475066,0.05119069,135.37,135.32,3.29278318]